[Event "Titled Tuesday Blitz February 28 Early 2023"]
[White "Jaskolka, Tomasz"]
[Black "Dehtiarov, Roman"]
[WhiteFideId "1170791"]
[BlackFideId "14186640"]
[WhiteElo "2155"]
[BlackElo "2162"]
[Result "0-1"]
[Round "08"]
[TimeControl "180+2"]
[Date "2023.02.28"]
[WhiteClock "0:00:02"]
[BlackClock "0:00:03"]

1. d4 {[%clk 0:03:00]}  Nf6 {[%clk 0:02:55]} 2. c4 {[%clk 0:03:00]}  e6 {[%clk 0:02:55]} 3. g3 {[%clk 0:03:00]}  d5 {[%clk 0:02:55]} 4. Bg2 {[%clk 0:03:00]}  c6 {[%clk 0:02:56]} 5. Nf3 {[%clk 0:02:58]}  Be7 {[%clk 0:02:55]} 6. O-O {[%clk 0:02:58]}  O-O {[%clk 0:02:56]} 7. Nc3 {[%clk 0:02:58]}  a6 {[%clk 0:02:56]} 8. c5 {[%clk 0:02:51]}  Nbd7 {[%clk 0:02:52]} 9. Qb3 {[%clk 0:02:45]}  Re8 {[%clk 0:02:51]} 10. Bg5 {[%clk 0:02:33]}  h6 {[%clk 0:02:49]} 11. Bxf6 {[%clk 0:02:31]}  Bxf6 {[%clk 0:02:50]} 12. e3 {[%clk 0:02:32]}  e5 {[%clk 0:02:50]} 13. Na4 {[%clk 0:02:28]}  exd4 {[%clk 0:02:40]} 14. exd4 {[%clk 0:02:27]}  Nf8 {[%clk 0:02:41]} 15. Nb6 {[%clk 0:02:25]}  Rb8 {[%clk 0:02:41]} 16. Rfe1 {[%clk 0:02:25]}  Bf5 {[%clk 0:02:32]} 17. Qc3 {[%clk 0:02:19]}  Ne6 {[%clk 0:02:26]} 18. Ne5 {[%clk 0:02:12]}  Re7 {[%clk 0:02:01]} 19. Rad1 {[%clk 0:02:10]}  Qc7 {[%clk 0:02:00]} 20. f4 {[%clk 0:01:47]}  Rd8 {[%clk 0:01:50]} 21. b4 {[%clk 0:01:44]}  Nf8 {[%clk 0:01:37]} 22. a4 {[%clk 0:01:43]}  Rde8 {[%clk 0:01:30]} 23. b5 {[%clk 0:01:41]}  axb5 {[%clk 0:01:29]} 24. axb5 {[%clk 0:01:41]}  g6 {[%clk 0:01:21]} 25. bxc6 {[%clk 0:01:31]}  bxc6 {[%clk 0:01:21]} 26. Bxd5 {[%clk 0:00:56]}  Bxe5 {[%clk 0:01:10]} 27. fxe5 {[%clk 0:00:56]}  cxd5 {[%clk 0:01:10]} 28. Nxd5 {[%clk 0:00:56]}  Qa7 {[%clk 0:01:02]} 29. Nf6+ {[%clk 0:00:56]}  Kh8 {[%clk 0:00:50]} 30. Nxe8 {[%clk 0:00:54]}  Rxe8 {[%clk 0:00:51]} 31. d5 {[%clk 0:00:50]}  Kg8 {[%clk 0:00:47]} 32. Ra1 {[%clk 0:00:47]}  Qb7 {[%clk 0:00:47]} 33. c6 {[%clk 0:00:46]}  Qb6+ {[%clk 0:00:40]} 34. Qe3 {[%clk 0:00:45]}  Qb5 {[%clk 0:00:41]} 35. Red1 {[%clk 0:00:42]}  Rd8 {[%clk 0:00:31]} 36. Qd4 {[%clk 0:00:26]}  Be6 {[%clk 0:00:13]} 37. c7 {[%clk 0:00:21]}  Rxd5 {[%clk 0:00:13]} 38. Qxd5 {[%clk 0:00:20]}  Bxd5 {[%clk 0:00:12]} 39. c8=Q {[%clk 0:00:19]}  Qb6+ {[%clk 0:00:11]} 40. Kf1 {[%clk 0:00:18]}  Be6 {[%clk 0:00:11]} 41. Qc2 {[%clk 0:00:14]}  Qe3 {[%clk 0:00:10]} 42. Qe2 {[%clk 0:00:10]}  Bh3+ {[%clk 0:00:09]} 43. Ke1 {[%clk 0:00:11]}  Qc3+ {[%clk 0:00:10]} 44. Qd2 {[%clk 0:00:09]}  Qxe5+ {[%clk 0:00:11]} 45. Kf2 {[%clk 0:00:09]}  Ne6 {[%clk 0:00:08]} 46. Re1 {[%clk 0:00:08]}  Qf5+ {[%clk 0:00:08]} 47. Kg1 {[%clk 0:00:07]}  Ng5 {[%clk 0:00:08]} 48. Qf4 {[%clk 0:00:04]}  Qc5+ {[%clk 0:00:04]} 49. Qe3 {[%clk 0:00:04]}  Qd5 {[%clk 0:00:03]} 50. Kf2 {[%clk 0:00:02]}  Qg2# {[%clk 0:00:03]} 0-1


[Site "https://www.chess.com"]

[Event "Titled Tuesday Blitz February 28 Early 2023"]
[White "Ilkhomi, Jaloliddin"]
[Black "Starozhilov, Leonid"]
[WhiteFideId "14700948"]
[BlackFideId "14106752"]
[WhiteElo "2045"]
[BlackElo "2414"]
[Result "1/2-1/2"]
[Round "08"]
[TimeControl "180+2"]
[Date "2023.02.28"]
[WhiteClock "0:00:24"]
[BlackClock "0:00:04"]

1. Nf3 {[%clk 0:03:00]}  Nf6 {[%clk 0:02:53]} 2. c4 {[%clk 0:03:00]}  g6 {[%clk 0:02:53]} 3. Nc3 {[%clk 0:03:00]}  Bg7 {[%clk 0:02:53]} 4. e4 {[%clk 0:03:01]}  d6 {[%clk 0:02:53]} 5. d4 {[%clk 0:03:01]}  Bg4 {[%clk 0:02:53]} 6. Be2 {[%clk 0:03:01]}  O-O {[%clk 0:02:51]} 7. h3 {[%clk 0:02:44]}  Bxf3 {[%clk 0:02:49]} 8. Bxf3 {[%clk 0:02:35]}  Nc6 {[%clk 0:02:49]} 9. Be3 {[%clk 0:02:33]}  e5 {[%clk 0:02:48]} 10. d5 {[%clk 0:02:32]}  Nd4 {[%clk 0:02:48]} 11. O-O {[%clk 0:02:23]}  Nd7 {[%clk 0:02:42]} 12. b4 {[%clk 0:02:21]}  a5 {[%clk 0:02:41]} 13. a3 {[%clk 0:01:40]}  axb4 {[%clk 0:02:12]} 14. axb4 {[%clk 0:01:41]}  Rxa1 {[%clk 0:02:10]} 15. Qxa1 {[%clk 0:01:42]}  Nxf3+ {[%clk 0:02:06]} 16. gxf3 {[%clk 0:01:43]}  Qh4 {[%clk 0:01:57]} 17. Kh2 {[%clk 0:01:37]}  f5 {[%clk 0:01:41]} 18. Qc1 {[%clk 0:01:18]}  fxe4 {[%clk 0:01:32]} 19. Nxe4 {[%clk 0:01:17]}  Rxf3 {[%clk 0:01:29]} 20. Ng3 {[%clk 0:00:37]}  Qf6 {[%clk 0:01:13]} 21. Kg2 {[%clk 0:00:34]}  Qf8 {[%clk 0:01:02]} 22. c5 {[%clk 0:00:32]}  Rf7 {[%clk 0:00:59]} 23. c6 {[%clk 0:00:28]}  bxc6 {[%clk 0:00:58]} 24. dxc6 {[%clk 0:00:29]}  Nf6 {[%clk 0:00:53]} 25. b5 {[%clk 0:00:29]}  d5 {[%clk 0:00:53]} 26. Bc5 {[%clk 0:00:28]}  Qc8 {[%clk 0:00:50]} 27. b6 {[%clk 0:00:25]}  cxb6 {[%clk 0:00:47]} 28. Bxb6 {[%clk 0:00:25]}  h5 {[%clk 0:00:40]} 29. c7 {[%clk 0:00:17]}  h4 {[%clk 0:00:36]} 30. Ne2 {[%clk 0:00:16]}  Ne8 {[%clk 0:00:35]} 31. Qc6 {[%clk 0:00:13]}  Nxc7 {[%clk 0:00:31]} 32. Bxc7 {[%clk 0:00:12]}  Qxc7 {[%clk 0:00:26]} 33. Qxd5 {[%clk 0:00:12]}  Qe7 {[%clk 0:00:15]} 34. Qe4 {[%clk 0:00:10]}  Kh7 {[%clk 0:00:13]} 35. Rg1 {[%clk 0:00:09]}  Qg5+ {[%clk 0:00:10]} 36. Qg4 {[%clk 0:00:09]}  Bh6 {[%clk 0:00:08]} 37. Qxg5 {[%clk 0:00:08]}  Bxg5 {[%clk 0:00:09]} 38. Rb1 {[%clk 0:00:09]}  e4 {[%clk 0:00:07]} 39. Rb5 {[%clk 0:00:09]}  e3 {[%clk 0:00:06]} 40. f3 {[%clk 0:00:07]}  Kh6 {[%clk 0:00:05]} 41. Re5 {[%clk 0:00:06]}  Rf5 {[%clk 0:00:02]} 42. Re8 {[%clk 0:00:06]}  Rd5 {[%clk 0:00:02]} 43. f4 {[%clk 0:00:07]}  Bf6 {[%clk 0:00:02]} 44. Kf3 {[%clk 0:00:07]}  Rd8 {[%clk 0:00:02]} 45. Rxe3 {[%clk 0:00:07]}  Kg7 {[%clk 0:00:02]} 46. Nc3 {[%clk 0:00:06]}  Bxc3 {[%clk 0:00:01]} 47. Rxc3 {[%clk 0:00:07]}  Rd1 {[%clk 0:00:02]} 48. Kg4 {[%clk 0:00:07]}  Rg1+ {[%clk 0:00:01]} 49. Kxh4 {[%clk 0:00:08]}  Kh6 {[%clk 0:00:02]} 50. Rc8 {[%clk 0:00:07]}  Kh7 {[%clk 0:00:02]} 51. Rf8 {[%clk 0:00:06]}  Kg7 {[%clk 0:00:02]} 52. Ra8 {[%clk 0:00:07]}  Kh6 {[%clk 0:00:02]} 53. Ra5 {[%clk 0:00:08]}  Kh7 {[%clk 0:00:03]} 54. f5 {[%clk 0:00:08]}  gxf5 {[%clk 0:00:02]} 55. Rxf5 {[%clk 0:00:09]}  Kh6 {[%clk 0:00:03]} 56. Rf6+ {[%clk 0:00:10]}  Kg7 {[%clk 0:00:03]} 57. Ra6 {[%clk 0:00:10]}  Kh7 {[%clk 0:00:03]} 58. Kh5 {[%clk 0:00:10]}  Kg7 {[%clk 0:00:04]} 59. Ra7+ {[%clk 0:00:11]}  Kg8 {[%clk 0:00:03]} 60. h4 {[%clk 0:00:10]}  Rg7 {[%clk 0:00:03]} 61. Ra8+ {[%clk 0:00:09]}  Kh7 {[%clk 0:00:03]} 62. Ra6 {[%clk 0:00:10]}  Rb7 {[%clk 0:00:03]} 63. Rh6+ {[%clk 0:00:11]}  Kg7 {[%clk 0:00:03]} 64. Rg6+ {[%clk 0:00:12]}  Kh7 {[%clk 0:00:04]} 65. Rc6 {[%clk 0:00:13]}  Ra7 {[%clk 0:00:04]} 66. Kg4 {[%clk 0:00:13]}  Rg7+ {[%clk 0:00:04]} 67. Kh5 {[%clk 0:00:13]}  Ra7 {[%clk 0:00:04]} 68. Rc5 {[%clk 0:00:14]}  Rb7 {[%clk 0:00:04]} 69. Kg5 {[%clk 0:00:14]}  Rg7+ {[%clk 0:00:04]} 70. Kf6 {[%clk 0:00:14]}  Ra7 {[%clk 0:00:04]} 71. h5 {[%clk 0:00:14]}  Kh6 {[%clk 0:00:03]} 72. Rd5 {[%clk 0:00:14]}  Rb7 {[%clk 0:00:02]} 73. Ra5 {[%clk 0:00:13]}  Rb6+ {[%clk 0:00:02]} 74. Kf5 {[%clk 0:00:13]}  Rb7 {[%clk 0:00:02]} 75. Ra8 {[%clk 0:00:14]}  Kh7 {[%clk 0:00:02]} 76. Kg5 {[%clk 0:00:14]}  Rg7+ {[%clk 0:00:02]} 77. Kf6 {[%clk 0:00:14]}  Rb7 {[%clk 0:00:03]} 78. Ra6 {[%clk 0:00:14]}  Rc7 {[%clk 0:00:02]} 79. h6 {[%clk 0:00:14]}  Rb7 {[%clk 0:00:02]} 80. Ra1 {[%clk 0:00:14]}  Rb6+ {[%clk 0:00:02]} 81. Kf5 {[%clk 0:00:15]}  Rxh6 {[%clk 0:00:02]} 82. Ra7+ {[%clk 0:00:15]}  Kg8 {[%clk 0:00:03]} 83. Kg5 {[%clk 0:00:16]}  Rc6 {[%clk 0:00:03]} 84. Ra8+ {[%clk 0:00:17]}  Kf7 {[%clk 0:00:03]} 85. Kf5 {[%clk 0:00:18]}  Ke7 {[%clk 0:00:04]} 86. Ke5 {[%clk 0:00:18]}  Re6+ {[%clk 0:00:04]} 87. Kd5 {[%clk 0:00:19]}  Rh6 {[%clk 0:00:05]} 88. Ra7+ {[%clk 0:00:18]}  Kf6 {[%clk 0:00:05]} 89. Ke4 {[%clk 0:00:19]}  Kg5 {[%clk 0:00:06]} 90. Ra5+ {[%clk 0:00:17]}  Kg6 {[%clk 0:00:06]} 91. Ra1 {[%clk 0:00:18]}  Rh4+ {[%clk 0:00:06]} 92. Ke5 {[%clk 0:00:18]}  Rg4 {[%clk 0:00:05]} 93. Ra8 {[%clk 0:00:18]}  Rb4 {[%clk 0:00:04]} 94. Rg8+ {[%clk 0:00:18]}  Kf7 {[%clk 0:00:04]} 95. Rg3 {[%clk 0:00:19]}  Rb5+ {[%clk 0:00:04]} 96. Kd6 {[%clk 0:00:20]}  Rf5 {[%clk 0:00:04]} 97. Ra3 {[%clk 0:00:19]}  Rf6+ {[%clk 0:00:04]} 98. Ke5 {[%clk 0:00:19]}  Rf1 {[%clk 0:00:05]} 99. Ra7+ {[%clk 0:00:18]}  Kg6 {[%clk 0:00:05]} 100. Ke4 {[%clk 0:00:18]}  Kf6 {[%clk 0:00:05]} 101. Ra6+ {[%clk 0:00:18]}  Kf7 {[%clk 0:00:05]} 102. Ra8 {[%clk 0:00:19]}  Re1+ {[%clk 0:00:05]} 103. Kf5 {[%clk 0:00:19]}  Rf1+ {[%clk 0:00:05]} 104. Ke5 {[%clk 0:00:20]}  Re1+ {[%clk 0:00:06]} 105. Kd5 {[%clk 0:00:21]}  Rd1+ {[%clk 0:00:06]} 106. Ke4 {[%clk 0:00:22]}  Re1+ {[%clk 0:00:06]} 107. Kd3 {[%clk 0:00:22]}  Rd1+ {[%clk 0:00:07]} 108. Ke2 {[%clk 0:00:22]}  Rd4 {[%clk 0:00:07]} 109. Ra3 {[%clk 0:00:22]}  Rb4 {[%clk 0:00:07]} 110. Kf3 {[%clk 0:00:23]}  Ke6 {[%clk 0:00:07]} 111. Ra5 {[%clk 0:00:23]}  Kd6 {[%clk 0:00:07]} 112. Ke3 {[%clk 0:00:23]}  Kc6 {[%clk 0:00:08]} 113. Rh5 {[%clk 0:00:23]}  Kd6 {[%clk 0:00:08]} 114. Kd3 {[%clk 0:00:23]}  Ke6 {[%clk 0:00:07]} 115. Rh6+ {[%clk 0:00:23]}  Kf5 {[%clk 0:00:07]} 116. Ra6 {[%clk 0:00:24]}  Rh4 {[%clk 0:00:07]} 117. Ra8 {[%clk 0:00:24]}  Ke6 {[%clk 0:00:07]} 118. Re8+ {[%clk 0:00:23]}  Kd7 {[%clk 0:00:07]} 119. Rg8 {[%clk 0:00:24]}  Kd6 {[%clk 0:00:07]} 120. Ke3 {[%clk 0:00:24]}  Ra4 {[%clk 0:00:07]} 121. Rb8 {[%clk 0:00:24]}  Kc7 {[%clk 0:00:07]} 122. Rb3 {[%clk 0:00:23]}  Kd6 {[%clk 0:00:07]} 123. Kd3 {[%clk 0:00:23]}  Rh4 {[%clk 0:00:06]} 124. Rb8 {[%clk 0:00:23]}  Kc7 {[%clk 0:00:06]} 125. Rg8 {[%clk 0:00:24]}  Kc6 {[%clk 0:00:06]} 126. Ke3 {[%clk 0:00:24]}  Kd5 {[%clk 0:00:06]} 127. Rg5+ {[%clk 0:00:24]}  Ke6 {[%clk 0:00:06]} 128. Rb5 {[%clk 0:00:23]}  Kd6 {[%clk 0:00:06]} 129. Kf3 {[%clk 0:00:24]}  Kc6 {[%clk 0:00:06]} 130. Kg3 {[%clk 0:00:24]}  Kxb5 {[%clk 0:00:04]} 131. Kxh4 {[%clk 0:00:24]} 1/2-1/2


[Site "https://www.chess.com"]

[Event "Titled Tuesday Blitz February 28 Early 2023"]
[White "Skvortsov, Andrei"]
[Black "Martin Carmona, Gaston Manuel"]
[WhiteFideId "24108600"]
[BlackFideId "22284567"]
[WhiteElo "2259"]
[BlackElo "2245"]
[Result "1-0"]
[Round "08"]
[TimeControl "180+2"]
[Date "2023.02.28"]
[WhiteClock "0:00:20"]
[BlackClock "0:00:02"]

1. e4 {[%clk 0:02:58]}  c5 {[%clk 0:02:59]} 2. Ne2 {[%clk 0:02:57]}  d6 {[%clk 0:02:59]} 3. g3 {[%clk 0:02:57]}  g6 {[%clk 0:02:59]} 4. Bg2 {[%clk 0:02:57]}  Bg7 {[%clk 0:03:00]} 5. c3 {[%clk 0:02:58]}  Nc6 {[%clk 0:02:59]} 6. d4 {[%clk 0:02:59]}  cxd4 {[%clk 0:02:47]} 7. cxd4 {[%clk 0:03:00]}  e5 {[%clk 0:02:47]} 8. d5 {[%clk 0:02:57]}  Nb8 {[%clk 0:02:46]} 9. O-O {[%clk 0:02:50]}  Ne7 {[%clk 0:02:47]} 10. a4 {[%clk 0:02:47]}  O-O {[%clk 0:02:47]} 11. Na3 {[%clk 0:02:47]}  Na6 {[%clk 0:02:45]} 12. Nc4 {[%clk 0:02:47]}  f5 {[%clk 0:02:44]} 13. f3 {[%clk 0:02:37]}  Nb4 {[%clk 0:02:23]} 14. a5 {[%clk 0:02:33]}  Qc7 {[%clk 0:02:18]} 15. Qb3 {[%clk 0:02:29]}  Na6 {[%clk 0:02:17]} 16. Be3 {[%clk 0:02:25]}  fxe4 {[%clk 0:02:11]} 17. fxe4 {[%clk 0:02:21]}  Bg4 {[%clk 0:02:11]} 18. Nc3 {[%clk 0:02:17]}  Nc5 {[%clk 0:02:05]} 19. Qb4 {[%clk 0:02:11]}  b6 {[%clk 0:01:46]} 20. axb6 {[%clk 0:02:00]}  axb6 {[%clk 0:01:47]} 21. Rxa8 {[%clk 0:01:57]}  Rxa8 {[%clk 0:01:48]} 22. Qxb6 {[%clk 0:01:56]}  Qxb6 {[%clk 0:01:46]} 23. Nxb6 {[%clk 0:01:57]}  Rb8 {[%clk 0:01:41]} 24. Nc4 {[%clk 0:01:52]}  Nb7 {[%clk 0:01:30]} 25. Nb5 {[%clk 0:01:45]}  Nc8 {[%clk 0:01:24]} 26. Ra1 {[%clk 0:01:31]}  Be2 {[%clk 0:01:23]} 27. b3 {[%clk 0:01:29]}  Bf8 {[%clk 0:01:17]} 28. Bf1 {[%clk 0:01:26]}  Bxc4 {[%clk 0:01:03]} 29. bxc4 {[%clk 0:01:22]}  Be7 {[%clk 0:01:04]} 30. Ra6 {[%clk 0:01:11]}  Nc5 {[%clk 0:00:59]} 31. Bxc5 {[%clk 0:01:10]}  dxc5 {[%clk 0:01:00]} 32. Bh3 {[%clk 0:01:04]}  Nb6 {[%clk 0:00:58]} 33. Bf1 {[%clk 0:00:59]}  Kf7 {[%clk 0:00:51]} 34. d6 {[%clk 0:00:57]}  Bd8 {[%clk 0:00:51]} 35. Ra7+ {[%clk 0:00:57]}  Kf6 {[%clk 0:00:50]} 36. Rxh7 {[%clk 0:00:55]}  Ra8 {[%clk 0:00:40]} 37. Rh8 {[%clk 0:00:52]}  Kg7 {[%clk 0:00:38]} 38. Re8 {[%clk 0:00:50]}  Kf7 {[%clk 0:00:39]} 39. Rxe5 {[%clk 0:00:49]}  Ra1 {[%clk 0:00:38]} 40. Kg2 {[%clk 0:00:46]}  Ra2+ {[%clk 0:00:35]} 41. Kh3 {[%clk 0:00:46]}  Nd7 {[%clk 0:00:35]} 42. Rd5 {[%clk 0:00:42]}  Bf6 {[%clk 0:00:32]} 43. Rd1 {[%clk 0:00:38]}  Ne5 {[%clk 0:00:25]} 44. Nc3 {[%clk 0:00:36]}  Rc2 {[%clk 0:00:24]} 45. Nd5 {[%clk 0:00:36]}  Bd8 {[%clk 0:00:12]} 46. Ne3 {[%clk 0:00:34]}  Rc3 {[%clk 0:00:10]} 47. Ng4 {[%clk 0:00:31]}  Nf3 {[%clk 0:00:10]} 48. Rd3 {[%clk 0:00:27]}  Ng5+ {[%clk 0:00:07]} 49. Kg2 {[%clk 0:00:27]}  Nxe4 {[%clk 0:00:07]} 50. Rxc3 {[%clk 0:00:25]}  Nxc3 {[%clk 0:00:08]} 51. Bd3 {[%clk 0:00:20]}  Na4 {[%clk 0:00:07]} 52. Ne5+ {[%clk 0:00:20]}  Ke6 {[%clk 0:00:06]} 53. Nxg6 {[%clk 0:00:19]}  Kxd6 {[%clk 0:00:07]} 54. Nf4 {[%clk 0:00:19]}  Nb2 {[%clk 0:00:07]} 55. Kf3 {[%clk 0:00:20]}  Bg5 {[%clk 0:00:06]} 56. Be2 {[%clk 0:00:20]}  Ke5 {[%clk 0:00:05]} 57. h4 {[%clk 0:00:21]}  Na4 {[%clk 0:00:02]} 58. hxg5 {[%clk 0:00:20]} 1-0


[Site "https://www.chess.com"]

[Event "Titled Tuesday Blitz February 28 Early 2023"]
[White "Real_taiatai"]
[Black "Orlov, Georgi"]
[BlackFideId "2011271"]
[WhiteElo "2527"]
[BlackElo "2636"]
[Result "0-1"]
[Round "08"]
[TimeControl "180+2"]
[Date "2023.02.28"]
[WhiteClock "0:00:05"]
[BlackClock "0:01:01"]

1. d4 {[%clk 0:03:00]}  Nf6 {[%clk 0:02:59]} 2. c4 {[%clk 0:03:01]}  Nc6 {[%clk 0:02:58]} 3. Nf3 {[%clk 0:03:00]}  e6 {[%clk 0:02:58]} 4. Nc3 {[%clk 0:02:49]}  Bb4 {[%clk 0:02:57]} 5. Bd2 {[%clk 0:02:49]}  O-O {[%clk 0:02:53]} 6. Qc2 {[%clk 0:02:50]}  d6 {[%clk 0:02:53]} 7. a3 {[%clk 0:02:48]}  Bxc3 {[%clk 0:02:52]} 8. Bxc3 {[%clk 0:02:49]}  Qe7 {[%clk 0:02:51]} 9. e3 {[%clk 0:02:48]}  e5 {[%clk 0:02:51]} 10. Be2 {[%clk 0:02:48]}  Bg4 {[%clk 0:02:48]} 11. h3 {[%clk 0:02:47]}  Bxf3 {[%clk 0:02:48]} 12. gxf3 {[%clk 0:02:45]}  exd4 {[%clk 0:02:48]} 13. exd4 {[%clk 0:02:45]}  Rfe8 {[%clk 0:02:46]} 14. Rd1 {[%clk 0:02:44]}  Nh5 {[%clk 0:02:45]} 15. Rd2 {[%clk 0:02:39]}  Nf4 {[%clk 0:02:42]} 16. Kd1 {[%clk 0:02:26]}  Qh4 {[%clk 0:02:29]} 17. Bd3 {[%clk 0:02:21]}  Qh5 {[%clk 0:02:22]} 18. Be4 {[%clk 0:01:37]}  f5 {[%clk 0:02:21]} 19. Bxc6 {[%clk 0:01:37]}  bxc6 {[%clk 0:02:19]} 20. Kc1 {[%clk 0:01:25]}  Qxf3 {[%clk 0:02:18]} 21. Rg1 {[%clk 0:01:25]}  Ne2+ {[%clk 0:02:15]} 22. Rxe2 {[%clk 0:01:24]}  Rxe2 {[%clk 0:02:15]} 23. Qa4 {[%clk 0:01:19]}  Qxf2 {[%clk 0:01:58]} 24. Rd1 {[%clk 0:01:18]}  Qe3+ {[%clk 0:01:53]} 25. Kb1 {[%clk 0:01:17]}  Qe4+ {[%clk 0:01:53]} 26. Ka1 {[%clk 0:01:17]}  Qc2 {[%clk 0:01:48]} 27. Qxc2 {[%clk 0:01:04]}  Rxc2 {[%clk 0:01:48]} 28. Re1 {[%clk 0:01:04]}  Kf7 {[%clk 0:01:47]} 29. Rg1 {[%clk 0:00:55]}  g6 {[%clk 0:01:44]} 30. d5 {[%clk 0:00:52]}  cxd5 {[%clk 0:01:41]} 31. cxd5 {[%clk 0:00:53]}  Rb8 {[%clk 0:01:38]} 32. Rd1 {[%clk 0:00:52]}  Rb5 {[%clk 0:01:36]} 33. Rd4 {[%clk 0:00:52]}  Rc5 {[%clk 0:01:35]} 34. Rh4 {[%clk 0:00:51]}  h5 {[%clk 0:01:34]} 35. Ra4 {[%clk 0:00:48]}  R2xc3 {[%clk 0:01:23]} 36. bxc3 {[%clk 0:00:47]}  a5 {[%clk 0:01:23]} 37. Kb2 {[%clk 0:00:43]}  Rxd5 {[%clk 0:01:21]} 38. Rc4 {[%clk 0:00:42]}  Rc5 {[%clk 0:01:20]} 39. Rf4 {[%clk 0:00:42]}  g5 {[%clk 0:01:19]} 40. Rf1 {[%clk 0:00:41]}  g4 {[%clk 0:01:20]} 41. h4 {[%clk 0:00:39]}  Kf6 {[%clk 0:01:19]} 42. Kc2 {[%clk 0:00:39]}  Rc4 {[%clk 0:01:19]} 43. Kd3 {[%clk 0:00:39]}  d5 {[%clk 0:01:19]} 44. Rb1 {[%clk 0:00:37]}  f4 {[%clk 0:01:18]} 45. Rb8 {[%clk 0:00:37]}  f3 {[%clk 0:01:18]} 46. Rd8 {[%clk 0:00:34]}  Ke6 {[%clk 0:01:16]} 47. Rf8 {[%clk 0:00:29]}  Re4 {[%clk 0:01:15]} 48. Re8+ {[%clk 0:00:22]}  Kd6 {[%clk 0:01:10]} 49. Rf8 {[%clk 0:00:22]}  c5 {[%clk 0:01:10]} 50. Rf5 {[%clk 0:00:18]}  c4+ {[%clk 0:01:10]} 51. Kd2 {[%clk 0:00:18]}  Re2+ {[%clk 0:01:10]} 52. Kd1 {[%clk 0:00:19]}  Re5 {[%clk 0:01:10]} 53. Rf6+ {[%clk 0:00:18]}  Kc5 {[%clk 0:01:06]} 54. Rf8 {[%clk 0:00:18]}  Kb5 {[%clk 0:01:05]} 55. Kc2 {[%clk 0:00:15]}  Ka4 {[%clk 0:01:05]} 56. Ra8 {[%clk 0:00:13]}  Re2+ {[%clk 0:01:05]} 57. Kb1 {[%clk 0:00:13]}  f2 {[%clk 0:01:03]} 58. Rb8 {[%clk 0:00:05]}  f1=Q# {[%clk 0:01:01]} 0-1


[Site "https://www.chess.com"]

[Event "Titled Tuesday Blitz February 28 Early 2023"]
[White "Kim, Sergey"]
[Black "Degenbaev, Aziz"]
[WhiteFideId "13700570"]
[BlackFideId "13802640"]
[WhiteElo "2628"]
[BlackElo "2152"]
[Result "1-0"]
[Round "08"]
[TimeControl "180+2"]
[Date "2023.02.28"]
[WhiteClock "0:02:30"]
[BlackClock "0:01:09"]

1. d4 {[%clk 0:03:00]}  Nf6 {[%clk 0:02:57]} 2. c4 {[%clk 0:03:00]}  g6 {[%clk 0:02:58]} 3. Nc3 {[%clk 0:03:01]}  Bg7 {[%clk 0:02:58]} 4. e4 {[%clk 0:03:01]}  d6 {[%clk 0:02:58]} 5. Nge2 {[%clk 0:03:01]}  O-O {[%clk 0:02:58]} 6. Ng3 {[%clk 0:03:01]}  c5 {[%clk 0:02:55]} 7. d5 {[%clk 0:03:01]}  e6 {[%clk 0:02:51]} 8. Be2 {[%clk 0:03:01]}  exd5 {[%clk 0:02:50]} 9. cxd5 {[%clk 0:03:02]}  Re8 {[%clk 0:02:47]} 10. O-O {[%clk 0:03:01]}  a6 {[%clk 0:02:48]} 11. a4 {[%clk 0:03:01]}  Nbd7 {[%clk 0:02:47]} 12. Bf4 {[%clk 0:03:01]}  Ne5 {[%clk 0:02:42]} 13. Qd2 {[%clk 0:03:01]}  Rb8 {[%clk 0:02:35]} 14. Bh6 {[%clk 0:02:59]}  Bd7 {[%clk 0:02:31]} 15. Bxg7 {[%clk 0:02:58]}  Kxg7 {[%clk 0:02:32]} 16. h3 {[%clk 0:02:57]}  b5 {[%clk 0:02:27]} 17. f4 {[%clk 0:02:57]}  Nc4 {[%clk 0:02:27]} 18. Bxc4 {[%clk 0:02:58]}  bxc4 {[%clk 0:02:28]} 19. Rae1 {[%clk 0:02:58]}  Qb6 {[%clk 0:02:12]} 20. e5 {[%clk 0:02:57]}  Ng8 {[%clk 0:02:09]} 21. Re2 {[%clk 0:02:55]}  Ne7 {[%clk 0:02:00]} 22. e6 {[%clk 0:02:50]}  fxe6 {[%clk 0:01:52]} 23. dxe6 {[%clk 0:02:50]}  Bc8 {[%clk 0:01:46]} 24. f5 {[%clk 0:02:50]}  Rf8 {[%clk 0:01:29]} 25. Qg5 {[%clk 0:02:46]}  Nc6 {[%clk 0:01:27]} 26. e7 {[%clk 0:02:34]}  Re8 {[%clk 0:01:19]} 27. fxg6 {[%clk 0:02:32]}  hxg6 {[%clk 0:01:09]} 28. Nh5+ {[%clk 0:02:30]} 1-0


[Site "https://www.chess.com"]

[Event "Titled Tuesday Blitz February 28 Early 2023"]
[White "Bochnicka, Vladimir"]
[Black "Jakubowski, Krzysztof"]
[WhiteFideId "14943450"]
[BlackFideId "1112848"]
[WhiteElo "2094"]
[BlackElo "2359"]
[Result "0-1"]
[Round "08"]
[TimeControl "180+2"]
[Date "2023.02.28"]
[WhiteClock "0:00:01"]
[BlackClock "0:00:32"]

1. e4 {[%clk 0:02:24]}  c5 {[%clk 0:02:57]} 2. Nf3 {[%clk 0:02:23]}  d6 {[%clk 0:02:57]} 3. d4 {[%clk 0:02:23]}  cxd4 {[%clk 0:02:57]} 4. Nxd4 {[%clk 0:02:24]}  Nf6 {[%clk 0:02:57]} 5. Nc3 {[%clk 0:02:24]}  a6 {[%clk 0:02:57]} 6. Be3 {[%clk 0:02:25]}  e6 {[%clk 0:02:55]} 7. f3 {[%clk 0:02:25]}  b5 {[%clk 0:02:53]} 8. Qd2 {[%clk 0:02:17]}  Nbd7 {[%clk 0:02:52]} 9. Be2 {[%clk 0:02:17]}  Bb7 {[%clk 0:02:39]} 10. O-O {[%clk 0:02:16]}  Be7 {[%clk 0:02:37]} 11. a4 {[%clk 0:02:10]}  b4 {[%clk 0:02:37]} 12. Na2 {[%clk 0:02:09]}  d5 {[%clk 0:02:36]} 13. Nxb4 {[%clk 0:02:03]}  Qa5 {[%clk 0:02:01]} 14. c3 {[%clk 0:01:38]}  Rc8 {[%clk 0:01:54]} 15. exd5 {[%clk 0:01:38]}  Nxd5 {[%clk 0:01:53]} 16. Nxd5 {[%clk 0:01:38]}  Bxd5 {[%clk 0:01:54]} 17. b4 {[%clk 0:01:23]}  Qc7 {[%clk 0:01:54]} 18. Bxa6 {[%clk 0:01:22]}  Ra8 {[%clk 0:01:54]} 19. Bb5 {[%clk 0:01:20]}  O-O {[%clk 0:01:54]} 20. c4 {[%clk 0:00:58]}  Bb7 {[%clk 0:01:45]} 21. c5 {[%clk 0:00:52]}  Nf6 {[%clk 0:01:41]} 22. Bd3 {[%clk 0:00:37]}  Nd5 {[%clk 0:01:36]} 23. Bf2 {[%clk 0:00:34]}  Rfd8 {[%clk 0:01:33]} 24. Rfe1 {[%clk 0:00:27]}  Bf6 {[%clk 0:01:29]} 25. Nb5 {[%clk 0:00:21]}  Qf4 {[%clk 0:01:26]} 26. Rad1 {[%clk 0:00:15]}  Qxb4 {[%clk 0:01:06]} 27. Be4 {[%clk 0:00:10]}  Qxa4 {[%clk 0:01:02]} 28. Nd6 {[%clk 0:00:09]}  Bc6 {[%clk 0:01:00]} 29. Kh1 {[%clk 0:00:05]}  g6 {[%clk 0:01:00]} 30. Bg3 {[%clk 0:00:04]}  Qa3 {[%clk 0:00:55]} 31. Qf2 {[%clk 0:00:03]}  Ra5 {[%clk 0:00:52]} 32. Bh4 {[%clk 0:00:04]}  Qb2 {[%clk 0:00:47]} 33. Qg3 {[%clk 0:00:03]}  Rxc5 {[%clk 0:00:40]} 34. Bxd5 {[%clk 0:00:02]}  Rxd5 {[%clk 0:00:38]} 35. Ne4 {[%clk 0:00:02]}  Bxh4 {[%clk 0:00:33]} 36. Qxh4 {[%clk 0:00:01]}  Rxd1 {[%clk 0:00:32]} 37. Nf6+ {[%clk 0:00:01]}  Qxf6 {[%clk 0:00:32]} 38. Rxd1 {[%clk 0:00:01]} 0-1


[Site "https://www.chess.com"]